fUSD/lending_fUSD_20250514
["ID","MTS","AMOUNT","RATE_DAILY","PERIOD"]
[361076064,1747233054281,-469.45,0.00011518,2]
[361076065,1747233054290,-400.0,0.00011518,2]
[361076066,1747233054301,-424.35,0.00011518,2]
[361076067,1747233054311,-400.0,0.00011518,2]
[361076068,1747233054321,-400.0,0.00011518,2]
[361076069,1747233054331,-400.0,0.00011518,2]
[361076070,1747233054341,-1069.85,0.00011518,2]
[361076071,1747233054352,-400.0,0.00011518,2]
[361076072,1747233054364,-400.0,0.00011518,2]
[361076073,1747233054374,-400.0,0.00011518,2]
[361076074,1747233054384,-400.0,0.00011518,2]
[361076075,1747233054394,-789.95,0.00011518,2]
[361076076,1747233054404,-400.0,0.00011518,2]
[361076077,1747233054415,-803.37,0.00011518,2]
[361076078,1747233054425,-400.0,0.00011518,2]
[361076079,1747233054435,-406.58,0.00011518,2]
[361076080,1747233054444,-400.0,0.00011518,2]
[361076081,1747233054454,-400.0,0.00011518,2]
[361076082,1747233054465,-728.41,0.00011518,2]
[361076083,1747233054474,-455.32,0.00011518,2]
[361076084,1747233054485,-581.24,0.00011518,2]
[361076085,1747233054495,-474.14,0.00011518,2]
[361076086,1747233054505,-400.0,0.00011518,2]
[361076087,1747233054515,-400.0,0.00011518,2]
[361076088,1747233054525,-400.0,0.00011518,2]
[361076089,1747233054535,-404.65,0.00011518,2]
[361076090,1747233054545,-457.14,0.00011518,2]
[361076091,1747233054555,-479.28,0.00011518,2]
[361076092,1747233054565,-400.0,0.00011518,2]
[361076093,1747233054575,-400.0,0.00011518,2]
[361076094,1747233054585,-843.5,0.00011518,2]
[361076095,1747233054596,-434.21,0.00011518,2]
[361076096,1747233054606,-400.0,0.00011518,2]
[361076097,1747233054618,-400.0,0.00011518,2]
[361076098,1747233054628,-400.0,0.00011518,2]
[361076099,1747233054638,-536.57,0.00011518,2]
[361076100,1747233054649,-248.46234506,0.00011518,2]
[361076101,1747233054659,-400.0,0.00011518,2]
[361076102,1747233054669,-400.0,0.00011518,2]
[361076103,1747233054679,-400.0,0.00011518,2]
[361076104,1747233054689,-400.0,0.00011518,2]
[361076105,1747233054699,-288.48086435,0.00011518,2]
[361076106,1747233055122,-111.51913565,0.00011518,2]
[361076107,1747233055133,-320.49871303,0.00011518,2]
[361076108,1747233055143,-400.0,0.00011518,2]
[361076109,1747233055153,-400.0,0.00011518,2]
[361076110,1747233055163,-8.18215132,0.00011518,2]
[361076111,1747233055212,-190.81801218,0.00011518,2]
[361076112,1747233055222,-400.0,0.00011518,2]
[361076113,1747233055231,-1260.76,0.00011518,2]
[361076114,1747233055241,-130.42198762,0.00011518,2]
[361076115,1747233055253,-269.57801238,0.00011518,2]
[361076116,1747233055263,-1308.79,0.00011518,2]
[361076117,1747233055272,-639.72,0.00011518,2]
[361076118,1747233055282,-400.0,0.00011518,2]
[361076119,1747233055292,-400.0,0.00011518,2]
[361076120,1747233055302,-1387.05,0.00011518,2]
[361076121,1747233055312,-400.0,0.00011518,2]
[361076122,1747233055570,-340.86198762,0.00011518,2]
[361076123,1747233055587,-73.28801238,0.00011518,2]
[361076124,1747233055599,-709.08,0.00011518,2]
[361076125,1747233055609,-545.35,0.00011518,2]
[361076126,1747233055622,-400.0,0.00011518,2]
[361076127,1747233055632,-400.0,0.00011518,2]
[361076128,1747233055642,-400.0,0.00011518,2]
[361076129,1747233055652,-400.0,0.00011518,2]
[361076130,1747233055662,-400.0,0.00011518,2]
[361076131,1747233055672,-97.34841997,0.00011518,2]
[361076132,1747233055685,-359.35158003,0.00011518,2]
[361076133,1747233055695,-155.40841997,0.00011518,2]
[361076134,1747233055707,-244.59158003,0.00011518,2]
[361076135,1747233055717,-143.44628279,0.00011518,2]
[361076136,1747233055730,-256.55371721,0.00011518,2]
[361076137,1747233055739,-400.0,0.00011518,2]
[361076138,1747233055749,-2686.27,0.00011518,2]
[361076139,1747233055760,-400.0,0.00011518,2]
[361076140,1747233055770,-400.0,0.00011518,2]
[361076141,1747233055780,-400.0,0.00011518,2]
[361076142,1747233055789,-400.0,0.00011518,2]
[361076143,1747233055799,-400.0,0.00011518,2]
[361076144,1747233055809,-896.96,0.00011518,2]
[361076145,1747233055819,-400.0,0.00011518,2]
[361076146,1747233055829,-400.0,0.00011518,2]
[361076147,1747233055838,-400.0,0.00011518,2]
[361076148,1747233055848,-400.0,0.00011518,2]
[361076149,1747233055858,-400.0,0.00011518,2]
[361076150,1747233055869,-400.0,0.00011518,2]
[361076151,1747233055880,-400.0,0.00011518,2]
[361076152,1747233055889,-400.0,0.00011518,2]
[361076153,1747233055899,-400.0,0.00011518,2]
[361076154,1747233055909,-505.35,0.00011518,2]
[361076155,1747233055918,-400.12,0.00011518,2]
[361076156,1747233055928,-400.0,0.00011518,2]
[361076157,1747233055938,-871.7,0.00011518,2]
[361076158,1747233055947,-400.0,0.00011518,2]
[361076159,1747233055957,-891.44,0.00011518,2]
[361076160,1747233055967,-400.0,0.00011518,2]
[361076161,1747233055977,-400.0,0.00011518,2]
[361076162,1747233055987,-903.65,0.00011518,2]
[361076163,1747233055996,-408.6,0.00011518,2]
[361076164,1747233056006,-453.22,0.00011518,2]
[361076165,1747233056016,-400.0,0.00011518,2]
[361076166,1747233056026,-400.0,0.00011518,2]
[361076167,1747233056035,-816.9,0.00011518,2]
[361076168,1747233056045,-486.1,0.00011518,2]
[361076169,1747233056055,-400.0,0.00011518,2]
[361076170,1747233056064,-721.86,0.00011518,2]
[361076171,1747233056074,-500.62,0.00011518,2]
[361076172,1747233056084,-512.06,0.00011518,2]
[361076173,1747233056098,-400.0,0.00011518,2]
[361076174,1747233056109,-794.04,0.00011518,2]
[361076175,1747233056120,-400.0,0.00011518,2]
[361076176,1747233056131,-1334.77,0.00011518,2]
[361076177,1747233056141,-400.0,0.00011518,2]
[361076178,1747233056150,-1637.66,0.00011518,2]
[361076179,1747233056160,-400.0,0.00011518,2]
[361076180,1747233056171,-400.0,0.00011518,2]
[361076181,1747233056180,-472.55,0.00011518,2]
[361076182,1747233056190,-400.0,0.00011518,2]
[361076183,1747233056199,-688.81,0.00011518,2]
[361076184,1747233056209,-400.0,0.00011518,2]
[361076185,1747233056218,-400.0,0.00011518,2]
[361076186,1747233056228,-1294.97,0.00011518,2]
[361076187,1747233056238,-476.36,0.00011518,2]
[361076188,1747233056248,-400.0,0.00011518,2]
[361076189,1747233056257,-708.71,0.00011518,2]
[361076190,1747233056267,-400.0,0.00011518,2]
[361076191,1747233056277,-823.83,0.00011518,2]
[361076192,1747233056287,-400.0,0.00011518,2]
[361076193,1747233056297,-403.39,0.00011518,2]
[361076194,1747233056306,-400.0,0.00011518,2]
[361076195,1747233056317,-400.0,0.00011518,2]
[361076196,1747233056326,-400.0,0.00011518,2]
[361076197,1747233056336,-400.0,0.00011518,2]
[361076198,1747233056346,-400.0,0.00011518,2]
[361076199,1747233056357,-400.0,0.00011518,2]
[361076200,1747233056368,-400.0,0.00011518,2]
[361076201,1747233056378,-5735.4,0.00011518,2]
[361076202,1747233056387,-400.0,0.00011518,2]
[361076203,1747233056397,-400.0,0.00011518,2]
[361076204,1747233056406,-783.95,0.00011518,2]
[361076205,1747233056416,-1605.55,0.00011518,2]
[361076206,1747233056426,-576.45,0.00011518,2]
[361076207,1747233056436,-400.0,0.00011518,2]
[361076208,1747233056445,-808.92,0.00011518,2]
[361076209,1747233056455,-563.55,0.00011518,2]
[361076210,1747233056465,-1315.54,0.00011518,2]
[361076211,1747233056474,-400.0,0.00011518,2]
[361076212,1747233056483,-1894.41,0.00011518,2]
[361076213,1747233056494,-9675.81,0.00011518,2]
[361076214,1747233056503,-400.0,0.00011518,2]
[361076215,1747233056512,-400.0,0.00011518,2]
[361076216,1747233056522,-400.0,0.00011518,2]
[361076217,1747233056531,-400.0,0.00011518,2]
[361076218,1747233056541,-400.0,0.00011518,2]
[361076219,1747233056551,-935.14,0.00011518,2]
[361076220,1747233056560,-1206.0,0.00011518,2]
[361076221,1747233056569,-400.0,0.00011518,2]
[361076222,1747233056579,-577.58,0.00011518,2]
[361076223,1747233056588,-400.0,0.00011518,2]
[361076224,1747233056599,-400.0,0.00011518,2]
[361076225,1747233056608,-861.06,0.00011518,2]
[361076226,1747233056620,-400.0,0.00011518,2]
[361076227,1747233056629,-10100.47830174,0.00011518,2]
[361076228,1747233057157,-4113.79169826,0.00011518,2]
[361076229,1747233057169,-400.0,0.00011518,2]
[361076230,1747233057179,-756.51,0.00011518,2]
[361076231,1747233057188,-423.45,0.00011518,2]
[361076232,1747233057198,-645.12,0.00011518,2]
[361076233,1747233057208,-507.30468854,0.00011518,2]
[361076234,1747233057217,-2883.58,0.00011518,2]
[361076235,1747233057228,-400.0,0.00011518,2]
[361076236,1747233057238,-400.0,0.00011518,2]
[361076237,1747233057247,-400.0,0.00011518,2]
[361076238,1747233057258,-498.93,0.00011518,2]
[361076239,1747233057267,-400.0,0.00011518,2]
[361076240,1747233057276,-406.51,0.00011518,2]
[361076241,1747233057285,-545.39,0.00011518,2]
[361076242,1747233057295,-400.0,0.00011518,2]
[361076243,1747233057304,-318.83652574,0.00011518,2]
[361076244,1747233057313,-400.0,0.00011518,2]
[361076245,1747233057322,-687.79,0.00011518,2]
[361076246,1747233057331,-400.0,0.00011518,2]
[361076247,1747233057340,-809.08,0.00011518,2]
[361076248,1747233057350,-400.0,0.00011518,2]
[361076249,1747233057360,-681.55,0.00011518,2]
[361076250,1747233057371,-542.67,0.00011518,2]
[361076251,1747233057381,-400.0,0.00011518,2]
[361076252,1747233057391,-400.0,0.00011518,2]
[361076253,1747233057400,-877.95,0.00011518,2]
[361076254,1747233057410,-400.0,0.00011518,2]
[361076255,1747233057420,-400.0,0.00011518,2]
[361076256,1747233057430,-400.0,0.00011518,2]
[361076257,1747233057440,-400.0,0.00011518,2]
[361076258,1747233057451,-400.0,0.00011518,2]
[361076259,1747233057460,-400.0,0.00011518,2]
[361076260,1747233057471,-400.0,0.00011518,2]
[361076261,1747233057480,-400.0,0.00011519,2]
[361076262,1747233057490,-400.0,0.00011519,2]
[361076263,1747233057499,-400.0,0.00011519,2]
[361076264,1747233057509,-425.27,0.00011519,2]
[361076265,1747233057519,-400.0,0.00011519,2]
[361076266,1747233057529,-400.0,0.00011519,2]
[361076267,1747233057539,-483.85,0.00011519,2]
[361076268,1747233057548,-428.91,0.00011519,2]
[361076269,1747233057556,-436.16,0.00011519,2]
[361076270,1747233057566,-191.5077289,0.00011519,2]
[361076271,1747233057575,-1482.256,0.00011522,2]
[361076272,1747233057584,-4399.79472853,0.00011687,2]
[361076273,1747233057593,-2167.12810008,0.00011692,2]
[361076274,1747233057603,-795.0,0.00011765,2]
[361076275,1747233057618,-400.0,0.0001179,2]
[361076276,1747233057627,-400.0,0.0001179,2]
[361076277,1747233057637,-620.28,0.0001179,2]
[361076278,1747233057646,-400.0,0.0001179,2]
[361076279,1747233057655,-400.0,0.0001179,2]
[361076280,1747233057665,-400.0,0.0001179,2]
[361076281,1747233057674,-613.76,0.0001179,2]
[361076282,1747233057683,-400.0,0.0001179,2]
[361076283,1747233057692,-1240.52,0.0001179,2]
[361076284,1747233057702,-400.0,0.0001179,2]
[361076285,1747233057711,-400.0,0.0001179,2]
[361076286,1747233057720,-2755.69,0.0001179,2]
[361076287,1747233057729,-924.76,0.0001179,2]
[361076288,1747233057739,-400.0,0.0001179,2]
[361076289,1747233057748,-974.33,0.0001179,2]
[361076290,1747233057758,-1632.3,0.0001179,2]
[361076291,1747233057768,-2465.19,0.0001179,2]
[361076292,1747233057846,-1210.81,0.0001179,2]
[361076293,1747233057857,-710.4,0.0001179,2]
[361076294,1747233057868,-452.18,0.0001179,2]
[361076295,1747233057878,-400.0,0.0001179,2]
[361076296,1747233057888,-400.0,0.0001179,2]
[361076297,1747233057898,-400.0,0.0001179,2]
[361076298,1747233057907,-400.0,0.0001179,2]
[361076299,1747233057917,-899.45,0.0001179,2]
[361076300,1747233057926,-482.499844,0.0001179,2]
[361076301,1747233057935,-950.45,0.0001179,2]
[361076302,1747233057945,-546.67,0.0001179,2]
[361076303,1747233057955,-400.0,0.0001179,2]
[361076304,1747233057964,-400.0,0.0001179,2]
[361076305,1747233057974,-430.89,0.0001179,2]
[361076306,1747233057984,-425.96,0.0001179,2]
[361076307,1747233057993,-618.18,0.00011791,2]
[361076308,1747233058003,-1867.92,0.00011791,2]
[361076309,1747233058012,-759.55,0.00011791,2]
[361076310,1747233058022,-400.0,0.00011791,2]
[361076311,1747233058032,-558.93,0.00011791,2]
[361076312,1747233058042,-400.0,0.00011791,2]
[361076313,1747233058051,-410.43755245,0.00011791,2]
[361076314,1747233058061,-912.56,0.00011791,2]
[361076315,1747233058071,-433.37,0.00011791,2]
[361076316,1747233058082,-400.0,0.00011791,2]
[361076317,1747233058095,-572.8,0.00011791,2]
[361076318,1747233058104,-487.85,0.00011791,2]
[361076319,1747233058113,-400.0,0.00011791,2]
[361076320,1747233058124,-643.56,0.00011791,2]
[361076321,1747233058134,-428.68,0.00011791,2]
[361076322,1747233058144,-400.0,0.00011791,2]
[361076323,1747233058154,-519.13,0.00011791,2]
[361076324,1747233058164,-465.16,0.00011791,2]
[361076325,1747233058174,-400.0,0.00011791,2]
[361076326,1747233058184,-400.0,0.00011791,2]
[361076327,1747233058194,-400.0,0.00011791,2]
[361076328,1747233058204,-400.0,0.00011791,2]
[361076329,1747233058214,-400.0,0.00011791,2]
[361076330,1747233058224,-1125.88,0.00011791,2]
[361076331,1747233058234,-400.0,0.00011791,2]
[361076332,1747233058243,-765.54,0.00011791,2]
[361076333,1747233058253,-400.0,0.00011791,2]
[361076334,1747233058263,-6772.009679,0.00011791,2]
[361076335,1747233058273,-207.181584,0.00011791,2]
[361076336,1747233058283,-620.36,0.00011791,2]
[361076337,1747233058293,-400.0,0.00011791,2]
[361076338,1747233058303,-469.67,0.00011791,2]
[361076339,1747233058314,-570.38,0.00011791,2]
[361076340,1747233058324,-520.54,0.00011791,2]
[361076341,1747233058334,-561.94,0.00011791,2]
[361076342,1747233058344,-400.0,0.00011791,2]
[361076343,1747233058354,-530.29,0.00011791,2]
[361076344,1747233058366,-424.95161391,0.00011791,2]
[361076345,1747233058376,-400.0,0.00011791,2]
[361076346,1747233058386,-496.88,0.00011791,2]
[361076347,1747233058396,-400.0,0.00011791,2]
[361076348,1747233058406,-400.0,0.00011791,2]
[361076349,1747233058416,-400.0,0.00011791,2]
[361076350,1747233058426,-400.0,0.00011791,2]
[361076351,1747233058436,-400.0,0.00011791,2]
[361076352,1747233058445,-473.35,0.00011791,2]
[361076353,1747233058455,-803.77,0.00011791,2]
[361076354,1747233058465,-400.0,0.00011791,2]
[361076355,1747233058475,-626.34,0.00011791,2]
[361076356,1747233058484,-234.53,0.00011791,2]
[361076357,1747233058494,-591.08,0.00011791,2]
[361076358,1747233058504,-456.07,0.00011791,2]
[361076359,1747233058513,-4896.9,0.00011791,2]
[361076360,1747233058523,-400.0,0.00011791,2]
[361076361,1747233058533,-548.54,0.00011791,2]
[361076362,1747233058542,-503.82,0.00011791,2]
[361076363,1747233058552,-400.0,0.00011791,2]
[361076364,1747233058562,-656.32,0.00011791,2]
[361076365,1747233058571,-1170.34,0.00011791,2]
[361076366,1747233058581,-3660.43,0.00011791,2]
[361076367,1747233058591,-400.0,0.00011791,2]
[361076368,1747233058602,-435.84,0.00011791,2]
[361076369,1747233058611,-400.0,0.00011791,2]
[361076370,1747233058622,-1067.81,0.00011791,2]
[361076371,1747233058632,-588.53,0.00011791,2]
[361076372,1747233058641,-1498.61,0.00011791,2]
[361076373,1747233058651,-1099.48,0.00011791,2]
[361076374,1747233058660,-595.69,0.00011791,2]
[361076375,1747233058671,-1229.38,0.00011791,2]
[361076376,1747233058681,-2309.4,0.00011791,2]
[361076377,1747233058690,-760.79,0.00011791,2]
[361076378,1747233058700,-438.98,0.00011791,2]
[361076379,1747233058710,-400.0,0.00011791,2]
[361076380,1747233058719,-787.26,0.00011791,2]
[361076381,1747233058729,-1068.6,0.00011791,2]
[361076382,1747233058739,-400.0,0.00011791,2]
[361076383,1747233058748,-669.67,0.00011791,2]
[361076384,1747233058758,-3065.87,0.00011791,2]
[361076385,1747233058768,-1620.07,0.00011791,2]
[361076386,1747233058777,-2986.87,0.00011791,2]
[361076387,1747233058786,-1653.13,0.00011791,2]
[361076388,1747233058796,-770.31,0.00011791,2]
[361076389,1747233058806,-1708.92,0.00011791,2]
[361076390,1747233058815,-400.0,0.00011791,2]
[361076391,1747233058825,-1266.68,0.00011791,2]
[361076392,1747233058835,-400.0,0.00011791,2]
[361076393,1747233058844,-938.25,0.00011791,2]
[361076394,1747233058853,-1176.2,0.00011791,2]
[361076395,1747233058863,-1175.15,0.00011791,2]
[361076396,1747233058877,-1266.59,0.00011791,2]
[361076397,1747233058886,-1318.66,0.00011791,2]
[361076398,1747233058895,-2429.17,0.00011791,2]
[361076399,1747233058904,-400.0,0.00011791,2]
[361076400,1747233058914,-463.91,0.00011791,2]
[361076401,1747233058923,-2053.01,0.00011791,2]
[361076402,1747233058933,-1447.22,0.00011791,2]
[361076403,1747233058943,-2062.49,0.00011791,2]
[361076404,1747233058952,-400.0,0.00011791,2]
[361076405,1747233058961,-400.0,0.00011791,2]
[361076406,1747233058971,-626.09,0.00011791,2]
[361076407,1747233058980,-743.89,0.00011791,2]
[361076408,1747233058991,-5488.32,0.00011791,2]
[361076409,1747233059002,-1088.62,0.00011791,2]
[361076410,1747233059011,-546.22,0.00011791,2]
[361076411,1747233059020,-400.0,0.00011791,2]
[361076412,1747233059030,-400.0,0.00011791,2]
[361076413,1747233059039,-417.85,0.00011791,2]
[361076414,1747233059048,-607.4,0.00011791,2]
[361076415,1747233059057,-4506.42,0.00011791,2]
[361076416,1747233059067,-2308.03,0.00011791,2]
[361076417,1747233059076,-439.31,0.00011791,2]
[361076418,1747233059085,-5594.55,0.00011791,2]
[361076419,1747233059097,-993.41,0.00011791,2]
[361076420,1747233059106,-1139.65,0.00011791,2]
[361076421,1747233059117,-580.59,0.00011791,2]
[361076422,1747233059127,-3507.6,0.00011791,2]
[361076423,1747233059136,-693.99,0.00011791,2]
[361076424,1747233059146,-1803.1,0.00011791,2]
[361076425,1747233059155,-400.0,0.00011791,2]
[361076426,1747233059165,-2228.34,0.00011791,2]
[361076427,1747233059175,-1322.06,0.00011791,2]
[361076428,1747233059184,-400.0,0.00011791,2]
[361076429,1747233059193,-400.0,0.00011791,2]
[361076430,1747233059204,-400.0,0.00011791,2]
[361076431,1747233059212,-400.0,0.00011791,2]
[361076432,1747233059221,-400.0,0.00011791,2]
[361076433,1747233059231,-871.24,0.00011791,2]
[361076434,1747233059240,-400.0,0.00011791,2]
[361076435,1747233059249,-407.41,0.00011791,2]
[361076436,1747233059258,-512.39,0.00011791,2]
[361076437,1747233059266,-1808.91,0.00011791,2]
[361076438,1747233059275,-1304.51,0.00011791,2]
[361076439,1747233059284,-476.66,0.00011791,2]
[361076440,1747233059292,-400.0,0.00011791,2]
[361076441,1747233059302,-4688.03,0.00011791,2]
[361076442,1747233059311,-400.0,0.00011791,2]
[361076443,1747233059320,-673.14,0.00011791,2]
[361076444,1747233059330,-400.0,0.00011791,2]
[361076445,1747233059339,-400.0,0.00011791,2]
[361076446,1747233059348,-13288.72,0.00011791,2]
[361076447,1747233059358,-2258.76,0.00011791,2]
[361076448,1747233059369,-400.0,0.00011791,2]
[361076449,1747233059378,-629.04,0.00011791,2]
[361076450,1747233059387,-519.76,0.00011791,2]
[361076451,1747233059396,-1146.54,0.00011791,2]
[361076452,1747233059406,-400.0,0.00011791,2]
[361076453,1747233059415,-646.27,0.00011791,2]
[361076454,1747233059424,-400.0,0.00011791,2]
[361076455,1747233059434,-4101.08,0.00011791,2]
[361076456,1747233059443,-400.0,0.00011791,2]
[361076457,1747233059453,-555.25,0.00011791,2]
[361076458,1747233059462,-636.19,0.00011791,2]
[361076459,1747233059470,-1541.56,0.00011791,2]
[361076460,1747233059478,-400.0,0.00011792,2]
[361076461,1747233059486,-468.19689444,0.00011792,2]
[361076462,1747233059495,-400.0,0.00011792,2]
[361076463,1747233059504,-400.0,0.00011792,2]
[361076464,1747233059513,-400.0,0.00011792,2]
[361076465,1747233059522,-400.0,0.00011792,2]
[361076466,1747233059531,-400.0,0.00011792,2]
[361076467,1747233059541,-400.0,0.00011792,2]
[361076468,1747233059550,-250.0,0.00011792,2]
[361076469,1747233059559,-400.0,0.00011792,2]
[361076470,1747233059568,-400.0,0.00011792,2]
[361076471,1747233059576,-400.0,0.00011792,2]
[361076472,1747233059586,-400.0,0.00011792,2]
[361076473,1747233059596,-492.41847999,0.00011792,2]
[361076474,1747233059605,-400.0,0.00011792,2]
[361076475,1747233059615,-400.0,0.00011792,2]
[361076476,1747233059629,-400.0,0.00011792,2]
[361076477,1747233059639,-506.65,0.00011792,2]
[361076478,1747233059649,-400.0,0.00011792,2]
[361076479,1747233059658,-400.0,0.00011792,2]
[361076480,1747233059667,-400.0,0.00011792,2]
[361076481,1747233059677,-469.45,0.00011792,2]
[361076482,1747233059686,-400.0,0.00011792,2]
[361076483,1747233059696,-424.35,0.00011792,2]
[361076484,1747233059706,-400.0,0.00011792,2]
[361076485,1747233059715,-400.0,0.00011792,2]
[361076486,1747233059724,-219.96700212,0.00011792,2]
[361076487,1747233059732,-1069.85,0.00011792,2]
[361076488,1747233059742,-400.0,0.00011792,2]
[361076489,1747233059750,-400.0,0.00011792,2]
[361076490,1747233059759,-400.0,0.00011792,2]
[361076491,1747233059768,-789.95,0.00011792,2]
[361076492,1747233059777,-400.0,0.00011792,2]
[361076493,1747233059786,-803.37,0.00011792,2]
[361076494,1747233059795,-400.0,0.00011792,2]
[361076495,1747233059804,-406.58,0.00011792,2]
[361076496,1747233059813,-400.0,0.00011792,2]
[361076497,1747233059822,-400.0,0.00011792,2]
[361076498,1747233059830,-728.41,0.00011792,2]
[361076499,1747233059839,-455.32,0.00011792,2]
[361076500,1747233059848,-581.24,0.00011792,2]
[361076501,1747233059857,-474.14,0.00011792,2]
[361076502,1747233059866,-400.0,0.00011792,2]
[361076503,1747233059878,-400.0,0.00011792,2]
[361076504,1747233059886,-227.93,0.00011792,2]
[361076505,1747233059895,-404.65,0.00011792,2]
[361076506,1747233059904,-457.14,0.00011792,2]
[361076507,1747233059914,-479.28,0.00011792,2]
[361076508,1747233059923,-400.0,0.00011792,2]
[361076509,1747233059932,-400.0,0.00011792,2]
[361076510,1747233059942,-843.5,0.00011792,2]
[361076511,1747233059952,-434.21,0.00011792,2]
[361076512,1747233059961,-400.0,0.00011792,2]
[361076513,1747233059970,-400.0,0.00011792,2]
[361076514,1747233059979,-536.57,0.00011792,2]
[361076515,1747233059988,-400.0,0.00011792,2]
[361076516,1747233059996,-400.0,0.00011792,2]
[361076517,1747233060005,-400.0,0.00011792,2]
[361076518,1747233060014,-400.0,0.00011792,2]
[361076519,1747233060023,-400.0,0.00011792,2]
[361076520,1747233060032,-400.0,0.00011792,2]
[361076521,1747233060041,-400.0,0.00011792,2]
[361076522,1747233060050,-400.0,0.00011792,2]
[361076523,1747233060059,-1260.76,0.00011792,2]
[361076524,1747233060068,-400.0,0.00011792,2]
[361076525,1747233060077,-1308.79,0.00011792,2]
[361076526,1747233060089,-639.72,0.00011792,2]
[361076527,1747233060102,-400.0,0.00011792,2]
[361076528,1747233060111,-400.0,0.00011792,2]
[361076529,1747233060122,-1387.05,0.00011792,2]
[361076530,1747233060132,-400.0,0.00011792,2]
[361076531,1747233060141,-414.15,0.00011792,2]
[361076532,1747233060151,-709.08,0.00011792,2]
[361076533,1747233060160,-545.35,0.00011792,2]
[361076534,1747233060171,-400.0,0.00011792,2]
[361076535,1747233060180,-509.32,0.00011792,2]
[361076536,1747233060189,-400.0,0.00011792,2]
[361076537,1747233060199,-400.0,0.00011792,2]
[361076538,1747233060210,-456.7,0.00011792,2]
[361076539,1747233060219,-400.0,0.00011792,2]
[361076540,1747233060229,-256.28,0.00011792,2]
[361076541,1747233060239,-400.0,0.00011792,2]
[361076542,1747233060248,-2686.27,0.00011792,2]
[361076543,1747233060258,-400.0,0.00011792,2]
[361076544,1747233060268,-400.0,0.00011792,2]
[361076545,1747233060278,-400.0,0.00011792,2]
[361076546,1747233060288,-400.0,0.00011792,2]
[361076547,1747233060298,-400.0,0.00011792,2]
[361076548,1747233060309,-896.96,0.00011792,2]
[361076549,1747233060319,-400.0,0.00011792,2]
[361076550,1747233060330,-400.0,0.00011792,2]
[361076551,1747233060339,-400.0,0.00011792,2]
[361076552,1747233060349,-400.0,0.00011792,2]
[361076553,1747233060359,-400.0,0.00011792,2]
[361076554,1747233060370,-433.1956965,0.00011792,2]
[361076555,1747233060380,-400.0,0.00011792,2]
[361076556,1747233060390,-400.0,0.00011792,2]
[361076557,1747233060400,-400.0,0.00011792,2]
[361076558,1747233060410,-505.35,0.00011792,2]
[361076559,1747233060420,-400.12,0.00011792,2]
[361076560,1747233060431,-503.79,0.00011792,2]
[361076561,1747233060441,-871.7,0.00011792,2]
[361076562,1747233060451,-400.0,0.00011792,2]
[361076563,1747233060460,-891.44,0.00011792,2]